[Event "NJSK 2022 Jeugd C"]
[Site "Almelo, Netherlands"]
[Date "2022.05.01"]
[Round "1.7"]
[White "Kurt, Sascha"]
[Black "Kumar, Prayan Sai"]
[Result "1-0"]
[TimeControl "90min + 30sec/move"]
[WhiteElo "1834"]
[BlackElo "1562"]

1. e4 {[%clk 01:30:57]} {[%emt 00:00:03]} c6 {[%clk 01:30:49]} {[%emt
00:00:11]} 2. d4 {[%clk 01:31:23]} {[%emt 00:00:04]} d5 {[%clk 01:31:08]}
{[%emt 00:00:11]} 3. Nd2 {[%clk 01:31:46]} {[%emt 00:00:07]} dxe4 {[%clk
01:30:38]} {[%emt 00:01:00]} 4. Nxe4 {[%clk 01:31:59]} {[%emt 00:00:16]} Nf6
{[%clk 01:30:09]} {[%emt 00:00:59]} 5. Nxf6+ {[%clk 01:32:23]} {[%emt
00:00:07]} exf6 {[%clk 01:30:28]} {[%emt 00:00:11]} 6. c3 {[%clk 01:31:55]}
{[%emt 00:00:58]} Bd6 {[%clk 01:30:36]} {[%emt 00:00:22]} 7. Bd3 {[%clk
01:31:50]} {[%emt 00:00:35]} O-O {[%clk 01:29:48]} {[%emt 00:01:18]} 8. Ne2
{[%clk 01:31:37]} {[%emt 00:00:43]} Re8 {[%clk 01:28:41]} {[%emt 00:01:37]} 9.
O-O {[%clk 01:31:04]} {[%emt 00:01:02]} Be6 {[%clk 01:21:49]} {[%emt 00:07:22]}
10. Nf4 {[%clk 01:24:45]} {[%emt 00:06:49]} Nd7 {[%clk 01:15:52]} {[%emt
00:06:28]} 11. Re1 {[%clk 01:20:24]} {[%emt 00:04:51]} Nf8 {[%clk 01:08:54]}
{[%emt 00:07:29]} 12. Nxe6 {[%clk 01:17:11]} {[%emt 00:03:43]} Nxe6 {[%clk
01:04:43]} {[%emt 00:04:40]} 13. Qc2 {[%clk 01:12:24]} {[%emt 00:05:17]} h6
{[%clk 00:54:35]} {[%emt 00:10:37]} 14. Bd2 {[%clk 01:07:41]} {[%emt 00:05:14]}
Qc7 {[%clk 00:52:01]} {[%emt 00:03:04]} 15. g3 {[%clk 01:06:32]} {[%emt
00:01:38]} Re7 {[%clk 00:40:47]} {[%emt 00:11:45]} 16. Re3 {[%clk 00:58:34]}
{[%emt 00:08:28]} Rae8 {[%clk 00:33:34]} {[%emt 00:07:43]} 17. Rae1 {[%clk
00:57:50]} {[%emt 00:01:13]} Nf8 {[%clk 00:18:59]} {[%emt 00:32:55]} 18. Be4
{[%clk 00:45:08]} {[%emt 00:13:12]} Ne6 {[%clk 00:09:50]} {[%emt 00:09:40]} 19.
Bg2 {[%clk 00:43:51]} {[%emt 00:01:47]} c5 {[%clk 00:06:24]} {[%emt 00:03:58]}
20. d5 {[%clk 00:43:10]} {[%emt 00:01:09]} Nf8 {[%clk 00:06:15]} {[%emt
00:00:39]} 21. c4 {[%clk 00:42:57]} {[%emt 00:00:43]} Ng6 {[%clk 00:04:21]}
{[%emt 00:02:24]} 22. a3 {[%clk 00:40:10]} {[%emt 00:03:17]} b6 {[%clk
00:03:26]} {[%emt 00:01:24]} 23. Qa4 {[%clk 00:24:39]} {[%emt 00:16:01]} Rxe3
{[%clk 00:01:55]} {[%emt 00:02:02]} 24. Rxe3 {[%clk 00:24:31]} {[%emt
00:00:37]} Rxe3 {[%clk 00:02:17]} {[%emt 00:00:09]} 25. Bxe3 {[%clk 00:24:29]}
{[%emt 00:00:31]} f5 {[%clk 00:02:17]} {[%emt 00:00:30]} 26. f4 {[%clk
00:22:52]} {[%emt 00:02:07]} Qe7 {[%clk 00:01:58]} {[%emt 00:00:50]} 27. Kf2
{[%clk 00:22:42]} {[%emt 00:00:40]} Nf8 {[%clk 00:01:18]} {[%emt 00:01:10]} 28.
Qc2 {[%clk 00:21:10]} {[%emt 00:01:59]} g6 {[%clk 00:01:29]} {[%emt 00:00:22]}
29. Qa4 {[%clk 00:16:52]} {[%emt 00:04:47]} h5 {[%clk 00:01:26]} {[%emt
00:00:33]} 30. Bd2 {[%clk 00:15:01]} {[%emt 00:02:21]} Qd7 {[%clk 00:01:03]}
{[%emt 00:00:53]} 31. Qxd7 {[%clk 00:15:12]} {[%emt 00:00:19]} Nxd7 {[%clk
00:01:27]} {[%emt 00:00:07]} 32. Bc3 {[%clk 00:14:21]} {[%emt 00:01:21]} f6
{[%clk 00:00:52]} {[%emt 00:01:05]} 33. Bf3 {[%clk 00:13:48]} {[%emt 00:01:03]}
Kf7 {[%clk 00:00:42]} {[%emt 00:00:40]} 34. Bd1 {[%clk 00:13:32]} {[%emt
00:00:45]} Ke7 {[%clk 00:00:46]} {[%emt 00:00:27]} 35. h4 {[%clk 00:13:29]}
{[%emt 00:00:32]} Nb8 {[%clk 00:00:39]} {[%emt 00:00:37]} 36. Ba4 {[%clk
00:13:54]} {[%emt 00:00:05]} Nd7 {[%clk 00:00:57]} {[%emt 00:00:12]} 37. Bxd7
{[%clk 00:14:15]} {[%emt 00:00:09]} Kxd7 {[%clk 00:01:21]} {[%emt 00:00:07]} 38.
Bxf6 {[%clk 00:14:32]} {[%emt 00:00:12]} a5 {[%clk 00:01:15]} {[%emt 00:00:36]}
39. Ke3 {[%clk 00:14:29]} {[%emt 00:00:33]} Kc7 {[%clk 00:00:57]} {[%emt
00:00:48]} 40. Be5 {[%clk 00:14:58]} {[%emt 00:00:01]} Kd7 {[%clk 00:01:09]}
{[%emt 00:00:19]} 41. Bxd6 {[%clk 00:15:08]} {[%emt 00:00:20]} Kxd6 {[%clk
00:01:31]} {[%emt 00:00:08]} 42. Kd3 {[%clk 00:15:34]} {[%emt 00:00:04]} Kc7
{[%clk 00:01:14]} {[%emt 00:00:47]} 43. Kc3 {[%clk 00:16:03]} Kd6 {[%clk
00:01:36]} {[%emt 00:00:08]} 44. Kb3 {[%clk 00:16:28]} {[%emt 00:00:05]} Kc7
{[%clk 00:01:51]} {[%emt 00:00:15]} 45. Ka4 {[%clk 00:16:55]} {[%emt 00:00:03]}
Kd6 {[%clk 00:02:11]} {[%emt 00:00:09]} 46. Kb5 {[%clk 00:17:20]} {[%emt
00:00:05]} Kc7 {[%clk 00:02:32]} {[%emt 00:00:09]} 47. b3 {[%clk 00:17:42]}
{[%emt 00:00:22]} 1-0

[Event "NJSK 2022 Jeugd C"]
[Site "Almelo, Netherlands"]
[Date "2022.05.01"]
[Round "1.8"]
[White "Agarwal, Pranav"]
[Black "Zecha, Oscar"]
[Result "0-1"]
[TimeControl "90min + 30sec/move"]
[WhiteElo "1531"]
[BlackElo "1826"]

1. d4 {[%clk 01:30:51]} {[%emt 00:00:08]} Nf6 {[%clk 01:30:58]} {[%emt
00:00:02]} 2. c4 {[%clk 01:31:12]} {[%emt 00:00:10]} e6 {[%clk 01:31:26]}
{[%emt 00:00:02]} 3. Nc3 {[%clk 01:31:32]} {[%emt 00:00:10]} Bb4 {[%clk
01:31:55]} {[%emt 00:00:02]} 4. a3 {[%clk 01:31:57]} {[%emt 00:00:04]} Bxc3+
{[%clk 01:32:15]} {[%emt 00:00:09]} 5. bxc3 {[%clk 01:32:17]} {[%emt 00:00:11]}
c5 {[%clk 01:32:30]} {[%emt 00:00:15]} 6. f3 {[%clk 01:32:28]} {[%emt
00:00:19]} d5 {[%clk 01:25:01]} {[%emt 00:07:59]} 7. Nh3 {[%clk 01:28:19]}
{[%emt 00:04:39]} Nc6 {[%clk 01:23:24]} {[%emt 00:02:07]} 8. Bb2 {[%clk
01:28:04]} {[%emt 00:00:45]} cxd4 {[%clk 01:21:52]} {[%emt 00:02:02]} 9. cxd4
{[%clk 01:28:17]} {[%emt 00:00:17]} Qa5+ {[%clk 01:21:03]} {[%emt 00:01:19]} 10.
Qd2 {[%clk 01:28:16]} {[%emt 00:00:31]} Qxd2+ {[%clk 01:21:14]} {[%emt
00:00:18]} 11. Kxd2 {[%clk 01:28:43]} {[%emt 00:00:03]} Na5 {[%clk 01:19:44]}
{[%emt 00:02:00]} 12. Re1 {[%clk 01:25:21]} {[%emt 00:03:52]} Nxc4+ {[%clk
01:19:43]} {[%emt 00:00:32]} 13. Kc3 {[%clk 01:25:47]} {[%emt 00:00:04]} Nxb2
{[%clk 01:16:47]} {[%emt 00:03:25]} 14. Kxb2 {[%clk 01:26:13]} {[%emt
00:00:05]} Bd7 {[%clk 01:16:36]} {[%emt 00:00:41]} 15. e4 {[%clk 01:26:15]}
{[%emt 00:00:28]} dxe4 {[%clk 01:15:03]} {[%emt 00:02:03]} 16. fxe4 {[%clk
01:26:39]} {[%emt 00:00:06]} O-O {[%clk 01:15:10]} {[%emt 00:00:23]} 17. e5
{[%clk 01:26:46]} {[%emt 00:00:22]} Nd5 {[%clk 01:15:14]} {[%emt 00:00:27]} 18.
Bc4 {[%clk 01:26:53]} {[%emt 00:00:23]} Bc6 {[%clk 01:15:10]} {[%emt 00:00:34]}
19. Rhg1 {[%clk 01:27:08]} {[%emt 00:00:15]} Rfd8 {[%clk 01:14:33]} {[%emt
00:01:07]} 20. Bxd5 {[%clk 01:26:40]} {[%emt 00:00:58]} Rxd5 {[%clk 01:13:44]}
{[%emt 00:01:19]} 21. Kc3 {[%clk 01:25:40]} {[%emt 00:01:30]} Rc8 {[%emt
00:02:02]} 22. Rc1 {[%clk 01:24:46]} h6 {[%clk 01:12:39]} {[%emt 00:01:27]} 23.
Rgd1 {[%clk 01:19:43]} {[%emt 00:05:32]} Ba4+ {[%clk 01:10:33]} {[%emt
00:02:36]} 24. Kb4 {[%clk 01:20:06]} {[%emt 00:00:07]} Rxc1 {[%clk 01:10:31]}
{[%emt 00:00:33]} 25. Rxc1 {[%clk 01:20:30]} {[%emt 00:00:05]} Rxd4+ {[%clk
01:10:09]} {[%emt 00:00:52]} 26. Rc4 {[%clk 01:20:57]} {[%emt 00:00:03]} Rxc4+
{[%clk 01:09:56]} {[%emt 00:00:43]} 27. Kxc4 {[%clk 01:21:20]} {[%emt
00:00:08]} Kf8 {[%clk 01:09:28]} {[%emt 00:00:58]} 28. Kc5 {[%clk 01:21:39]}
{[%emt 00:00:11]} Ke7 {[%clk 01:09:44]} {[%emt 00:00:14]} 29. Nf2 {[%clk
01:21:56]} {[%emt 00:00:13]} Bc6 {[%clk 01:08:50]} {[%emt 00:01:23]} 30. g3
{[%clk 01:22:02]} {[%emt 00:00:24]} f6 {[%clk 01:08:43]} {[%emt 00:00:38]} 31.
Nd3 {[%clk 01:22:04]} {[%emt 00:00:27]} Be4 {[%clk 01:06:36]} {[%emt 00:02:37]}
32. exf6+ {[%clk 01:22:07]} {[%emt 00:00:26]} Kxf6 {[%clk 01:06:47]} {[%emt
00:00:20]} 33. Nf2 {[%clk 01:22:14]} {[%emt 00:00:24]} Bc6 {[%clk 01:06:58]}
{[%emt 00:00:19]} 34. Kd6 {[%clk 01:22:29]} {[%emt 00:00:15]} h5 {[%clk
01:06:43]} {[%emt 00:00:44]} 35. Nd3 {[%clk 01:22:13]} {[%emt 00:00:47]} g5
{[%clk 01:05:58]} {[%emt 00:01:15]} 36. Ne5 {[%clk 01:22:32]} {[%emt 00:00:11]}
Bd5 {[%clk 01:04:58]} {[%emt 00:01:30]} 37. Nd7 {[%clk 01:17:53]} {[%emt
00:05:09]} Kf5 {[%clk 01:05:00]} {[%emt 00:00:27]} 38. Ne5 {[%clk 01:16:01]}
{[%emt 00:02:22]} a5 {[%clk 01:04:17]} {[%emt 00:01:14]} 39. Nd3 {[%clk
01:15:48]} {[%emt 00:00:43]} Kg4 {[%clk 01:03:07]} {[%emt 00:01:39]} 40. Ke5
{[%clk 01:14:52]} {[%emt 00:01:27]} h4 {[%clk 01:01:46]} {[%emt 00:01:50]} 41.
Kf6 {[%clk 01:13:06]} {[%emt 00:02:16]} hxg3 {[%clk 00:58:50]} {[%emt
00:03:27]} 42. Ne5+ {[%clk 01:12:25]} {[%emt 00:01:11]} Kh3 {[%clk 00:58:50]}
{[%emt 00:00:30]} 43. hxg3 {[%clk 01:12:38]} {[%emt 00:00:16]} g4 {[%clk
00:59:05]} {[%emt 00:00:15]} 44. Kg5 {[%clk 01:12:27]} {[%emt 00:00:41]} Bf3
{[%clk 00:59:00]} {[%emt 00:00:36]} 45. Kf4 {[%clk 01:12:42]} {[%emt 00:00:15]}
Bd1 {[%clk 00:55:42]} {[%emt 00:03:47]} 46. Nc4 {[%clk 01:12:29]} {[%emt
00:00:43]} a4 {[%clk 00:55:32]} {[%emt 00:00:41]} 47. Nd6 {[%clk 00:57:23]}
{[%emt 00:15:36]} e5+ {[%clk 00:49:35]} {[%emt 00:24:16]} 48. Kxe5 {[%clk
00:57:46]} {[%emt 00:00:07]} Kxg3 {[%clk 00:49:54]} {[%emt 00:00:10]} 49. Nxb7
{[%emt 00:00:47]} Kh2 {[%clk 00:48:43]} {[%emt 00:01:04]} 50. Nc5 {[%clk
00:58:27]} {[%emt 00:00:11]} g3 {[%clk 00:48:46]} {[%emt 00:00:27]} 0-1

[Event "NJSK 2022 Jeugd C"]
[Site "Almelo, Netherlands"]
[Date "2022.05.01"]
[Round "1.9"]
[White "Krylov, Philippe"]
[Black "Folkers, Sono"]
[Result "1-0"]
[TimeControl "90min + 30sec/move"]
[WhiteElo "1817"]
[BlackElo "1519"]

1. d4 {[%clk 01:30:58]} {[%emt 00:00:02]} d5 {[%clk 01:30:51]} {[%emt
00:00:09]} 2. c4 {[%clk 01:31:25]} {[%emt 00:00:03]} e6 {[%clk 01:31:15]}
{[%emt 00:00:06]} 3. Nc3 {[%clk 01:31:53]} {[%emt 00:00:03]} Nf6 {[%clk
01:31:36]} {[%emt 00:00:08]} 4. cxd5 {[%clk 01:32:21]} {[%emt 00:00:03]} Nxd5
{[%clk 01:31:52]} {[%emt 00:00:14]} 5. e4 {[%clk 01:30:39]} {[%emt 00:02:11]}
Nxc3 {[%clk 01:30:52]} {[%emt 00:01:30]} 6. bxc3 {[%clk 01:31:07]} {[%emt
00:00:02]} g6 {[%clk 01:29:45]} {[%emt 00:01:37]} 7. Nf3 {[%clk 01:30:12]}
{[%emt 00:01:26]} Bg7 {[%clk 01:29:52]} {[%emt 00:00:23]} 8. Ba3 {[%clk
01:28:10]} {[%emt 00:02:32]} Nc6 {[%clk 01:26:59]} {[%emt 00:03:22]} 9. Bb5
{[%clk 01:27:08]} {[%emt 00:01:32]} Bd7 {[%clk 01:26:55]} {[%emt 00:00:34]} 10.
O-O {[%clk 01:24:26]} {[%emt 00:03:12]} a6 {[%clk 01:25:54]} {[%emt 00:01:31]}
11. Bxc6 {[%clk 01:24:15]} {[%emt 00:00:41]} Bxc6 {[%clk 01:26:13]} {[%emt
00:00:11]} 12. Re1 {[%clk 01:24:23]} {[%emt 00:00:22]} Bb5 {[%clk 01:24:51]}
{[%emt 00:01:52]} 13. Qb3 {[%clk 01:17:32]} {[%emt 00:07:21]} Qd7 {[%clk
01:22:52]} {[%emt 00:02:29]} 14. Rab1 {[%clk 01:13:29]} {[%emt 00:04:33]} b6
{[%clk 01:21:34]} {[%emt 00:01:48]} 15. c4 {[%clk 01:02:53]} {[%emt 00:11:06]}
Ba4 {[%clk 01:19:02]} {[%emt 00:03:01]} 16. Qe3 {[%clk 01:01:35]} {[%emt
00:01:49]} Bc6 {[%clk 01:16:37]} {[%emt 00:02:56]} 17. d5 {[%clk 01:00:17]}
{[%emt 00:01:48]} Bb7 {[%clk 01:15:54]} {[%emt 00:01:12]} 18. c5 {[%clk
00:59:42]} {[%emt 00:01:06]} Qd8 {[%clk 01:08:08]} {[%emt 00:08:15]} 19. cxb6
{[%clk 00:59:04]} {[%emt 00:01:08]} cxb6 {[%clk 01:07:16]} {[%emt 00:01:22]} 20.
Rxb6 {[%clk 00:59:05]} {[%emt 00:00:29]} Bc8 {[%clk 01:06:28]} {[%emt
00:01:18]} 21. Rd6 {[%clk 00:52:25]} {[%emt 00:07:10]} Qf6 {[%clk 01:03:28]}
{[%emt 00:03:30]} 22. e5 {[%clk 00:49:03]} {[%emt 00:03:52]} Qf5 {[%clk
01:02:38]} {[%emt 00:01:19]} 23. Nd4 {[%clk 00:46:34]} {[%emt 00:02:59]} Qh5
{[%clk 01:00:06]} {[%emt 00:03:03]} 24. dxe6 {[%clk 00:45:39]} {[%emt
00:01:25]} O-O {[%clk 00:56:56]} {[%emt 00:03:40]} 25. exf7+ {[%clk 00:45:08]}
{[%emt 00:01:02]} Rxf7 {[%clk 00:55:25]} {[%emt 00:02:00]} 26. Rd8+ {[%clk
00:45:26]} {[%emt 00:00:12]} Rf8 {[%clk 00:50:30]} {[%emt 00:05:26]} 27. Qb3+
{[%clk 00:45:37]} {[%emt 00:00:19]} Kh8 {[%clk 00:40:17]} {[%emt 00:30:43]} 28.
Bxf8 {[%clk 00:45:34]} {[%emt 00:00:33]} Qg5 {[%clk 00:37:43]} {[%emt
00:03:03]} 29. Be7+ {[%clk 00:45:16]} {[%emt 00:00:49]} 1-0

[Event "NJSK 2022 Jeugd C"]
[Site "Almelo, Netherlands"]
[Date "2022.05.01"]
[Round "1.10"]
[White "Fallaux, Storm"]
[Black "Van Arendonk, Polle"]
[Result "0-1"]
[TimeControl "90min + 30sec/move"]
[WhiteElo "1459"]
[BlackElo "1784"]

1. e4 {[%clk 01:30:57]} {[%emt 00:00:02]} c5 {[%clk 01:30:56]} {[%emt
00:00:05]} 2. Nf3 {[%clk 01:31:16]} {[%emt 00:00:10]} d6 {[%clk 01:31:22]}
{[%emt 00:00:05]} 3. d4 {[%clk 01:31:39]} {[%emt 00:00:07]} cxd4 {[%clk
01:31:46]} {[%emt 00:00:06]} 4. Nxd4 {[%clk 01:32:03]} {[%emt 00:00:05]} Nf6
{[%clk 01:32:09]} {[%emt 00:00:08]} 5. Nc3 {[%clk 01:32:26]} {[%emt 00:00:08]}
a6 {[%clk 01:32:33]} {[%emt 00:00:05]} 6. Bd3 {[%clk 01:32:02]} {[%emt
00:00:53]} e5 {[%clk 01:31:20]} {[%emt 00:01:44]} 7. Nb3 {[%clk 01:31:23]}
{[%emt 00:01:09]} Be6 {[%clk 01:30:05]} {[%emt 00:01:45]} 8. Be3 {[%clk
01:29:46]} {[%emt 00:02:07]} Be7 {[%clk 01:29:12]} {[%emt 00:01:24]} 9. f3
{[%clk 01:28:38]} {[%emt 00:01:38]} O-O {[%clk 01:28:37]} {[%emt 00:01:04]} 10.
Qd2 {[%clk 01:27:00]} {[%emt 00:02:08]} b5 {[%clk 01:24:05]} {[%emt 00:05:02]}
11. O-O-O {[%clk 01:24:00]} {[%emt 00:03:30]} Nbd7 {[%clk 01:18:28]} {[%emt
00:06:07]} 12. Qf2 {[%clk 01:18:47]} {[%emt 00:05:43]} Qc7 {[%clk 01:12:40]}
{[%emt 00:06:17]} 13. Kb1 {[%clk 01:16:32]} {[%emt 00:02:46]} Nc5 {[%clk
01:10:22]} {[%emt 00:02:48]} 14. Be2 {[%clk 01:14:28]} {[%emt 00:02:34]} b4
{[%clk 01:05:33]} {[%emt 00:05:20]} 15. Bxc5 {[%clk 01:05:26]} {[%emt
00:09:31]} dxc5 {[%clk 01:03:04]} {[%emt 00:02:59]} 16. Nd5 {[%clk 01:00:58]}
{[%emt 00:04:58]} Bxd5 {[%clk 00:56:30]} {[%emt 00:07:04]} 17. exd5 {[%clk
01:01:15]} {[%emt 00:00:13]} c4 {[%clk 00:53:00]} {[%emt 00:04:00]} 18. Nd2
{[%clk 00:59:16]} {[%emt 00:02:28]} c3 {[%clk 00:46:35]} {[%emt 00:06:56]} 19.
Nc4 {[%clk 00:55:52]} {[%emt 00:03:54]} Rfd8 {[%clk 00:40:39]} {[%emt
00:06:26]} 20. Qb6 {[%clk 00:54:13]} {[%emt 00:02:08]} Qxb6 {[%clk 00:38:55]}
{[%emt 00:02:14]} 21. Nxb6 {[%clk 00:54:41]} {[%emt 00:00:03]} Rab8 {[%clk
00:39:08]} {[%emt 00:00:18]} 22. Nc4 {[%clk 00:55:01]} {[%emt 00:00:10]} Nxd5
{[%clk 00:26:34]} {[%emt 00:30:58]} 23. Nxe5 {[%clk 00:55:04]} {[%emt
00:00:26]} cxb2 {[%clk 00:25:26]} {[%emt 00:01:39]} 24. Nc6 {[%clk 00:50:07]}
{[%emt 00:05:26]} Nc3+ {[%clk 00:25:40]} {[%emt 00:00:16]} 25. Kxb2 {[%clk
00:50:28]} {[%emt 00:00:10]} Nxd1+ {[%clk 00:26:00]} {[%emt 00:00:09]} 26. Bxd1
{[%clk 00:50:39]} {[%emt 00:00:19]} Bf6+ {[%clk 00:22:50]} {[%emt 00:03:41]} 27.
Kb3 {[%clk 00:49:54]} {[%emt 00:01:14]} Bc3 {[%clk 00:17:54]} {[%emt 00:05:26]}
28. Nxb8 {[%clk 00:49:37]} {[%emt 00:00:46]} Rxb8 {[%clk 00:18:19]} {[%emt
00:00:05]} 29. Be2 {[%clk 00:49:59]} {[%emt 00:00:09]} a5 {[%clk 00:18:28]}
{[%emt 00:00:22]} 30. a3 {[%clk 00:49:54]} {[%emt 00:00:34]} Rd8 {[%clk
00:15:23]} {[%emt 00:03:35]} 31. Rd1 {[%clk 00:49:22]} {[%emt 00:01:02]} Rxd1
{[%clk 00:15:37]} {[%emt 00:00:17]} 32. Bxd1 {[%clk 00:49:50]} {[%emt
00:00:01]} Kf8 {[%clk 00:15:41]} {[%emt 00:00:26]} 33. a4 {[%clk 00:50:10]}
{[%emt 00:00:10]} Ke7 {[%clk 00:15:36]} {[%emt 00:00:35]} 34. Kc4 {[%clk
00:50:30]} {[%emt 00:00:11]} Ke6 {[%clk 00:15:39]} {[%emt 00:00:26]} 35. Kb5
{[%clk 00:49:58]} {[%emt 00:01:02]} Ke5 {[%clk 00:14:06]} {[%emt 00:02:04]} 36.
g3 {[%clk 00:50:10]} {[%emt 00:00:17]} Kd4 {[%clk 00:09:23]} {[%emt 00:05:13]}
37. Kxa5 {[%clk 00:50:09]} {[%emt 00:00:31]} b3+ {[%clk 00:09:34]} {[%emt
00:00:18]} 38. Kb5 {[%clk 00:50:12]} {[%emt 00:00:27]} b2 {[%clk 00:09:47]}
{[%emt 00:00:17]} 39. Be2 {[%clk 00:50:28]} {[%emt 00:00:15]} b1=Q+ {[%clk
00:09:58]} {[%emt 00:00:19]} 40. Kc6 {[%clk 00:50:48]} {[%emt 00:00:10]} Qxc2
{[%clk 00:09:33]} {[%emt 00:00:55]} 41. Bb5 {[%clk 00:51:10]} {[%emt 00:00:08]}
Ba5+ {[%clk 00:09:43]} {[%emt 00:00:21]} 42. Kb7 {[%clk 00:51:16]} {[%emt
00:00:21]} Qc7+ {[%clk 00:10:03]} {[%emt 00:00:11]} 43. Ka8 {[%clk 00:51:35]}
{[%emt 00:00:13]} Bb6 {[%clk 00:10:06]} {[%emt 00:00:27]} 44. Bc6 {[%clk
00:51:45]} {[%emt 00:00:19]} Qa7# {[%clk 00:10:23]} {[%emt 00:00:13]} 0-1

[Event "NJSK 2022 Jeugd C"]
[Site "Almelo, Netherlands"]
[Date "2022.05.01"]
[Round "1.11"]
[White "Madularea, David"]
[Black "Franco, Hugo"]
[Result "1-0"]
[TimeControl "90min + 30sec/move"]
[WhiteElo "1774"]
[BlackElo "1441"]

1. e4 {[%clk 01:30:55]} {[%emt 00:00:04]} e6 {[%clk 01:30:26]} {[%emt
00:00:35]} 2. d4 {[%clk 01:31:11]} {[%emt 00:00:14]} d5 {[%clk 01:30:43]}
{[%emt 00:00:13]} 3. e5 {[%clk 01:31:30]} {[%emt 00:00:10]} c5 {[%clk
01:31:00]} {[%emt 00:00:14]} 4. c3 {[%clk 01:31:46]} {[%emt 00:00:13]} Qb6
{[%clk 01:31:17]} {[%emt 00:00:14]} 5. Nf3 {[%clk 01:32:05]} {[%emt 00:00:10]}
Nc6 {[%clk 01:31:12]} {[%emt 00:00:35]} 6. a3 {[%clk 01:32:10]} {[%emt
00:00:25]} f6 {[%clk 01:29:33]} {[%emt 00:02:10]} 7. Bd3 {[%clk 01:19:47]}
{[%emt 00:12:53]} Bd7 {[%clk 01:29:28]} {[%emt 00:00:35]} 8. Bc2 {[%clk
01:16:51]} {[%emt 00:03:25]} Be7 {[%clk 01:26:38]} {[%emt 00:03:21]} 9. O-O
{[%clk 01:14:59]} {[%emt 00:02:21]} Nh6 {[%clk 01:25:02]} {[%emt 00:02:07]} 10.
Bxh6 {[%clk 01:11:37]} {[%emt 00:03:52]} gxh6 {[%clk 01:24:45]} {[%emt
00:00:47]} 11. b4 {[%clk 01:11:11]} {[%emt 00:00:55]} cxd4 {[%clk 01:23:05]}
{[%emt 00:02:11]} 12. cxd4 {[%clk 01:11:19]} {[%emt 00:00:22]} fxe5 {[%clk
01:21:33]} {[%emt 00:02:02]} 13. dxe5 {[%clk 01:07:00]} {[%emt 00:04:48]} O-O-O
{[%clk 01:20:51]} {[%emt 00:01:13]} 14. Nc3 {[%clk 01:05:47]} {[%emt 00:01:43]}
Rdf8 {[%clk 01:20:13]} {[%emt 00:01:06]} 15. Rc1 {[%clk 01:04:15]} {[%emt
00:02:04]} Rhg8 {[%clk 01:19:32]} {[%emt 00:01:12]} 16. b5 {[%clk 01:03:48]}
{[%emt 00:00:57]} Na5 {[%clk 01:17:36]} {[%emt 00:02:25]} 17. Bxh7 {[%clk
01:03:58]} {[%emt 00:00:19]} Rg7 {[%clk 01:17:42]} {[%emt 00:00:24]} 18. Nxd5+
{[%clk 01:04:19]} {[%emt 00:00:10]} Kb8 {[%clk 01:15:53]} {[%emt 00:02:18]} 19.
Nxb6 {[%clk 01:03:47]} {[%emt 00:01:03]} Bxb5 {[%clk 01:15:05]} {[%emt
00:01:17]} 20. Nd7+ {[%clk 01:02:49]} {[%emt 00:01:28]} Bxd7 {[%clk 01:13:00]}
{[%emt 00:02:36]} 21. Qxd7 {[%clk 01:03:09]} {[%emt 00:00:09]} Rxh7 {[%clk
01:12:40]} {[%emt 00:00:51]} 22. Qc7+ {[%clk 01:03:33]} {[%emt 00:00:06]} Ka8
{[%clk 01:10:29]} {[%emt 00:02:41]} 23. Qc8+ {[%clk 01:03:53]} {[%emt
00:00:10]} Rxc8 {[%emt 00:00:06]} 24. Rxc8# {[%clk 01:03:53]} {[%emt 00:00:08]}
1-0